bitfinex/quotes_ETHUSD_20241203
["timestamp","ask_amount","ask_price","bid_price","bid_amount"]
[1733245683401,0.38558222,3551.6,3550.4,3.0]
[1733245683602,0.05301539,3551.7,3550.9,3.0]
[1733245683809,0.67532547,3551.6,3551.0,3.0]
[1733245684014,0.67532547,3551.5,3551.0,3.0]
[1733245684363,0.29131604,3551.4,3551.2,2.81593]
[1733245684512,0.0315688,3551.4,3550.9,3.0]
[1733245684712,0.7597,3551.8,3550.9,3.0]
[1733245684915,0.25973202,3551.7,3550.9,3.0]
[1733245685147,0.25973202,3551.6,3550.9,3.0]
[1733245685328,0.0323402,3551.7,3550.9,3.0]
[1733245685536,0.03228821,3551.5,3550.9,3.0]
[1733245685742,0.0323142,3551.6,3550.9,3.0]
[1733245685926,0.03226221,3551.4,3551.2,2.81594]
[1733245686257,0.03228821,3551.5,3551.4,5.81579]
[1733245686456,0.7989,3552.7,3551.7,2.81555]
[1733245686657,0.25969985,3552.6,3551.2,0.581594]
[1733245686958,3.07461985,3552.5,3551.5,2.81568]
[1733245687265,0.25969985,3552.4,3551.6,3.0]
[1733245687430,0.25969985,3552.3,3551.8,3.0]
[1733245687758,0.25969985,3552.2,3551.8,0.581554]
[1733245687918,0.7989,3552.7,3552.6,2.81483]
[1733245688121,1.05852841,3552.7,3552.6,2.81483]
[1733245688317,0.7989,3552.7,3552.6,2.81483]
[1733245688717,0.7989,3552.7,3552.3,2.81505]
[1733245689054,0.7989,3552.7,3552.5,2.8149]
[1733245689355,0.7989,3552.7,3552.1,3.0]
[1733245689356,0.7989,3552.7,3551.8,0.7768]
[1733245689556,0.763,3553.0,3552.2,3.0]
[1733245689755,0.763,3553.0,3552.6,2.81481]
[1733245689954,0.763,3553.0,3552.3,3.0]
[1733245690169,0.763,3553.0,3552.2,3.355]
[1733245690170,0.763,3553.0,3552.8,2.81462]
[1733245690331,0.763,3553.0,3552.6,2.81481]
[1733245690518,0.763,3553.0,3552.7,2.81475]
[1733245691353,0.02073423,3552.9,3552.4,3.0]
[1733245691517,0.02073423,3552.9,3551.9,0.55]
[1733245691712,0.39263895,3552.8,3552.2,3.0]
[1733245691958,0.39263895,3552.8,3551.9,0.55]
[1733245692133,0.39263895,3552.8,3552.1,5.8152]
[1733245692134,0.03281953,3552.8,3552.1,5.8152]
[1733245692333,0.763,3553.0,3552.1,5.8152]
[1733245692558,0.03301751,3552.9,3552.2,3.02815074]
[1733245692746,0.03301751,3552.9,3552.3,0.55]
[1733245692959,0.02073423,3552.9,3552.0,3.55]
[1733245693154,0.70923471,3552.9,3552.2,3.0]
[1733245693438,0.0325742,3552.8,3552.3,3.0]
[1733245693646,0.0325742,3552.8,3552.0,0.55]
[1733245693814,0.0325742,3552.8,3552.2,0.55]
[1733245694018,0.763,3553.0,3552.2,0.55]
[1733245694019,0.02073423,3552.9,3552.5,3.0]
[1733245694343,0.763,3553.0,3552.5,3.0]
[1733245694555,2.81468,3552.8,3552.1,3.0]
[1733245694735,0.782,3552.6,3551.2,1.345394]
[1733245694926,2.86864256,3552.5,3551.4,2.81571]
[1733245695121,0.05372256,3552.5,3551.4,2.81571]
[1733245695322,0.782,3552.0,3550.8,0.7638]
[1733245695576,2.81557,3551.7,3550.4,0.7638]
[1733245695723,1.41837559,3551.6,3550.6,2.81641]
[1733245696068,0.03263227,3551.5,3550.7,2.81634]
[1733245696230,0.03263227,3551.5,3550.9,2.81614]
[1733245696564,0.03263227,3551.5,3550.7,2.8163]
[1733245696862,0.03263227,3551.5,3551.2,2.81592]
[1733245697272,0.782,3551.6,3550.9,0.55]
[1733245697555,0.782,3551.6,3551.0,3.0]
[1733245697763,0.05361942,3551.5,3550.9,3.0]
[1733245698062,0.03288519,3551.5,3551.1,2.81598]
[1733245698355,0.03288519,3551.5,3550.8,0.02816083]
[1733245698554,0.782,3551.6,3550.9,2.81611]
[1733245698734,0.03264912,3551.5,3551.0,5.81608]
[1733245698960,0.05338335,3551.5,3550.7,2.81627]
[1733245699163,0.03264912,3551.5,3550.8,5.81625]
[1733245699376,0.02073423,3551.4,3550.6,2.81639]
[1733245699560,0.03264912,3551.5,3551.1,2.81595]
[1733245699771,0.05338335,3551.5,3550.6,2.81637]
[1733245699976,0.05338335,3551.5,3550.7,3.0]
[1733245700183,0.05338335,3551.5,3549.9,2.81698]
[1733245700184,0.7596,3551.2,3549.9,2.81698]
[1733245700350,0.7596,3551.2,3550.4,2.81655]
[1733245700550,0.03197676,3551.1,3550.5,2.81648]
[1733245700792,0.03197676,3551.1,3550.0,3.181618]
[1733245700793,0.05271099,3551.1,3550.0,0.364758]
[1733245701096,0.7747,3551.0,3550.0,2.81687]
[1733245701304,0.02073423,3550.9,3550.0,2.81687]
[1733245701467,0.03200251,3550.9,3549.8,2.81705]
[1733245701649,0.03200251,3550.9,3550.3,2.81664]
[1733245702009,0.05273674,3550.9,3549.7,0.8306]
[1733245702297,0.05273674,3550.9,3549.2,0.44057761]
[1733245702298,0.7537,3550.6,3549.8,2.81704]
[1733245702493,0.7537,3550.6,3549.8,0.281704]
[1733245702662,0.03187664,3550.5,3549.8,3.098694]
[1733245702851,0.7537,3550.6,3550.3,2.8166]
[1733245703652,0.7537,3550.6,3550.4,2.81658]
[1733245703857,0.7537,3550.6,3550.0,3.0]
[1733245703858,0.7537,3550.6,3550.2,2.81674]
[1733245704307,0.7537,3550.6,3550.4,2.81656]
[1733245704667,0.7537,3550.6,3550.2,0.863372]
[1733245704668,0.7715,3551.4,3550.8,2.81625]
[1733245704867,0.7715,3551.4,3550.3,3.39482532]
[1733245704868,0.7715,3551.4,3550.3,0.55]
[1733245705210,0.05215536,3551.3,3550.2,0.863372]
[1733245705369,0.7949,3551.2,3550.2,0.863372]
[1733245705583,0.03137605,3551.1,3550.1,3.0]
[1733245705886,0.03137605,3551.1,3550.3,3.0]
[1733245706106,0.03137605,3551.1,3550.6,2.81635]
[1733245706610,0.03137605,3551.1,3550.5,0.55]
[1733245706899,0.03137605,3551.1,3551.0,2.8161]
[1733245707102,0.03137605,3551.1,3551.0,6.64771]
[1733245707309,0.25847368,3552.6,3551.7,2.81555]
[1733245707461,0.7794,3552.7,3551.5,5.81567]
[1733245707656,0.03051563,3552.5,3551.7,3.0]
[1733245707909,0.03049314,3552.6,3551.7,3.0]
[1733245708104,0.03040952,3552.4,3552.2,2.81515]
[1733245708301,0.03043551,3552.5,3551.8,0.3]
[1733245708497,0.03038352,3552.3,3551.8,3.0]
[1733245708684,0.03040952,3552.4,3551.7,2.81551]
[1733245708875,0.7794,3552.7,3551.7,0.55]
[1733245709063,0.7794,3552.7,3552.3,2.81506]
[1733245709569,0.7794,3552.7,3551.9,2.81535]
[1733245709772,3.28684057,3553.5,3551.7,3.55]
[1733245709773,0.8237,3553.5,3552.3,0.55]
[1733245709973,0.8237,3553.5,3553.0,2.81452]
[1733245710195,0.8237,3553.5,3552.5,3.0]
[1733245710393,0.8237,3553.5,3553.0,2.81448]
[1733245710780,0.8237,3553.5,3552.8,2.81467]
[1733245710781,0.02073423,3553.4,3552.8,2.81467]
[1733245710990,0.8237,3553.5,3552.9,2.81459]
[1733245711301,0.8258,3553.9,3552.9,0.48562453]
[1733245711520,0.8258,3553.9,3553.5,2.81405]
[1733245711685,0.8258,3553.9,3553.2,0.02813975]
[1733245712013,0.8258,3553.9,3553.0,3.55]
[1733245712171,0.02073423,3553.8,3553.3,3.0]
[1733245712572,0.03011841,3553.7,3553.3,3.0]
[1733245712814,0.02073423,3553.8,3553.0,0.55]
[1733245712815,0.02073423,3553.8,3553.0,3.0]
[1733245712980,0.03009244,3553.6,3553.2,2.81428]
[1733245713185,0.8258,3553.9,3553.3,5.81424]
[1733245713684,0.03013516,3553.8,3553.3,5.81424]
[1733245713916,0.03013516,3553.8,3553.3,3.0]
[1733245714285,0.8258,3553.9,3553.4,2.8142]
[1733245714616,0.03014439,3553.8,3553.4,2.81414]
[1733245714782,0.05087862,3553.8,3553.4,2.81414]
[1733245715108,0.03014439,3553.8,3553.0,3.0]
[1733245715309,0.03014439,3553.8,3553.3,3.0]
[1733245715310,0.05087862,3553.8,3553.3,3.0]
[1733245715611,0.02073423,3553.8,3553.0,3.0]
[1733245716000,0.03011842,3553.7,3552.6,3.0]
[1733245716323,0.8184,3553.4,3551.8,0.8157]
[1733245716471,0.41259748,3553.3,3552.4,2.81494]
[1733245716675,0.02073423,3553.2,3552.4,2.81494]
[1733245716871,0.02073423,3553.2,3552.3,2.81499]
[1733245717107,0.03044491,3553.1,3552.0,2.81531]
[1733245717276,0.8184,3553.0,3552.3,2.81506]
[1733245717475,0.83913423,3553.0,3552.3,2.81506]
[1733245717733,0.03039296,3552.9,3551.8,0.8157]
[1733245717929,0.03039296,3552.9,3552.2,3.0]
[1733245718431,0.39878168,3552.9,3552.2,3.0]
[1733245718633,0.39878168,3552.9,3552.4,3.0]
[1733245718820,0.03039296,3552.9,3552.4,5.81498]
[1733245719635,0.03039296,3552.9,3552.1,3.0]
[1733245719840,0.02073423,3552.8,3552.1,3.0]
[1733245720145,0.02975291,3552.7,3551.9,2.81538]
[1733245720444,0.02975291,3552.7,3552.0,2.8153]
[1733245721236,0.7739,3552.5,3551.0,1.10551]
[1733245721460,2.81524,3552.1,3551.0,3.0977]
[1733245721601,0.82453423,3552.0,3551.0,0.28161]
[1733245721801,2.8155,3551.8,3550.6,0.7683]
[1733245722047,2.8155,3551.8,3549.5,3.38684057]
[1733245722048,0.8038,3551.6,3550.7,2.81634]
[1733245722227,0.02073423,3551.5,3550.7,2.81634]
[1733245722547,0.02936307,3551.5,3550.3,2.81666]
[1733245722846,0.02073423,3551.4,3550.5,2.81642]
[1733245723148,0.02931105,3551.3,3550.8,2.81626]
[1733245723348,0.02931105,3551.3,3550.6,3.379718]
[1733245723650,6.10231057,3551.8,3550.2,2.81672]
[1733245723651,0.8144,3551.1,3550.2,2.81672]
[1733245723818,0.02073423,3551.0,3550.4,0.44048211]
[1733245723997,0.02933829,3551.0,3550.4,3.25703211]
[1733245724639,0.05007252,3551.0,3550.4,0.44048211]
[1733245724940,2.81623,3550.9,3550.4,0.44048211]
[1733245725112,0.69382048,3550.9,3550.4,0.44048211]
[1733245725363,2.81642,3550.6,3549.4,0.7538]
[1733245725584,0.04973725,3550.5,3549.4,0.7538]
[1733245725748,0.04973725,3550.5,3550.0,0.44052954]
[1733245725943,0.04973725,3550.5,3548.9,0.7765]
[1733245725944,0.7789,3550.4,3548.9,0.7765]
[1733245726182,0.02877653,3550.3,3549.8,0.44056727]
[1733245727647,0.02073423,3550.2,3549.8,0.44056727]
[1733245727848,0.8162,3550.1,3549.8,0.44056727]
[1733245728048,0.02073423,3550.0,3549.1,3.0]
[1733245728358,0.02835487,3550.0,3549.3,0.44064178]
[1733245728693,0.02835487,3550.0,3549.4,2.81737]
[1733245728871,0.02835487,3550.0,3549.5,3.0]
[1733245729092,0.02835487,3550.0,3549.5,5.81726]
[1733245729609,0.02835487,3550.0,3549.3,3.25807178]
[1733245729795,0.02835487,3550.0,3549.4,3.0]
[1733245730170,0.0490891,3550.0,3549.3,0.76644896]
[1733245730403,0.0490891,3550.0,3549.3,3.44064178]
[1733245730714,0.02835487,3550.0,3549.3,0.44064178]
[1733245730908,0.02835487,3550.0,3549.5,2.81728]
[1733245732665,0.02835487,3550.0,3549.6,2.81719]
[1733245733241,0.02835487,3550.0,3549.3,0.44064178]
[1733245733449,0.02835487,3550.0,3549.8,2.81701]
[1733245733802,0.8162,3550.1,3549.8,2.81701]
[1733245734001,0.8162,3550.1,3549.9,2.81696]
[1733245734204,0.8162,3550.1,3549.5,0.44061737]
[1733245734205,0.8162,3550.1,3549.6,2.81714]
[1733245734435,0.02768615,3550.0,3549.5,0.44061737]
[1733245734632,0.02768615,3550.0,3548.9,2.81775]
[1733245734845,0.02768615,3550.0,3549.1,3.0]
[1733245734998,3.64211,3549.7,3549.1,0.44065613]
[1733245735200,0.02761855,3549.6,3549.1,0.44065613]
[1733245736443,0.02761855,3549.6,3549.2,2.81753]
[1733245736647,0.02761855,3549.6,3549.3,3.0]
[1733245736852,0.02761855,3549.6,3549.4,0.62581861]
[1733245737053,0.7937,3550.2,3549.4,0.62581861]
[1733245737054,0.7937,3550.2,3549.8,2.81704]
[1733245737558,0.02751451,3550.1,3549.4,0.62581861]
[1733245737720,0.02751451,3550.1,3549.8,2.81703]
[1733245738043,0.02751451,3550.1,3549.6,2.8172]
[1733245738247,0.02751451,3550.1,3549.7,2.81708]
[1733245738419,0.02751451,3550.1,3549.8,2.81698]
[1733245738942,0.02751451,3550.1,3549.6,0.75303404]
[1733245739242,0.02751451,3550.1,3549.4,0.62581861]
[1733245739456,0.02751451,3550.1,3549.6,2.8172]
[1733245739613,0.02751451,3550.1,3550.0,2.8169]
[1733245739813,0.02751451,3550.1,3549.8,2.817]
[1733245740454,0.02751451,3550.1,3549.9,2.81698]
[1733245740647,0.02751451,3550.1,3549.7,2.81711]
[1733245740839,0.02751451,3550.1,3550.0,2.8169]
[1733245741523,0.8251,3550.6,3550.1,2.81679]
[1733245741732,0.8251,3550.6,3550.0,3.0]
[1733245742042,0.02773277,3550.5,3550.2,2.81672]
[1733245742244,0.02773277,3550.5,3550.3,2.81664]
[1733245742572,0.02773277,3550.5,3550.2,3.0]
[1733245742849,0.02773277,3550.5,3549.9,2.81696]
[1733245743159,0.048467,3550.5,3549.7,3.21639286]
[1733245743357,0.048467,3550.5,3549.4,0.62581861]
[1733245743538,2.81691,3550.0,3549.0,2.81767]
[1733245743855,0.7501,3549.8,3549.0,2.81769]
[1733245744095,0.7501,3549.8,3548.7,0.7665]
[1733245744096,0.7501,3549.8,3549.4,2.81736]
[1733245744258,0.02770384,3549.7,3549.4,2.81736]
[1733245744566,0.02770384,3549.7,3549.2,2.81752]
[1733245744858,0.02770384,3549.7,3548.9,2.81772]
[1733245744859,0.02770384,3549.7,3549.4,2.81737]
[1733245745062,0.02770384,3549.7,3549.3,0.76646895]
[1733245745232,0.02770384,3549.7,3549.6,2.81721]
[1733245745433,0.7521,3551.0,3550.0,2.81687]
[1733245745953,0.04874545,3550.9,3550.0,2.81687]
[1733245746252,0.71838882,3550.9,3550.1,2.8168]
[1733245746464,0.71838882,3550.9,3549.7,3.0]
[1733245746621,0.71838882,3550.9,3549.5,0.8039]
[1733245746622,3.28684057,3550.7,3549.6,0.55]
[1733245746959,0.02796055,3550.6,3549.9,2.8169]
[1733245747257,0.02796055,3550.6,3550.1,2.81678]
[1733245747455,0.02796055,3550.6,3550.2,2.81671]
[1733245747665,0.7521,3551.0,3549.9,2.81692]
[1733245747864,3.28684057,3551.9,3550.3,0.7844]
[1733245748159,1.01888375,3551.8,3550.6,0.55]
[1733245748363,0.7608,3551.8,3551.4,2.81579]
[1733245748658,0.7608,3551.8,3550.8,0.55]
[1733245749016,0.7608,3551.8,3551.2,2.81588]
[1733245749231,0.7608,3551.8,3551.6,2.81555]
[1733245749419,0.7608,3552.2,3551.7,2.81554]
[1733245749628,0.7608,3552.2,3551.2,3.55]
[1733245749867,0.25808375,3552.6,3551.8,0.8296]
[1733245750067,0.25808375,3552.6,3552.4,2.81496]
[1733245750285,0.8205,3552.9,3552.0,0.55]
[1733245750472,0.8205,3552.9,3552.1,2.81522]
[1733245750758,0.02602746,3552.8,3552.2,2.81512]
[1733245750959,0.02602746,3552.8,3552.1,3.0]
[1733245751313,0.02602746,3552.8,3552.1,2.81519]
[1733245751716,0.04676169,3552.8,3551.5,0.55]
[1733245751950,0.02602746,3552.8,3551.5,3.55]
[1733245752114,0.02602746,3552.8,3551.8,0.55]
[1733245752331,0.02602746,3552.8,3552.7,2.81476]
[1733245752547,0.02602746,3552.8,3552.1,5.81516]
[1733245752548,0.7608,3553.4,3552.9,2.81456]
[1733245752754,4.0,3553.0,3552.8,2.81467]
[1733245752985,4.0,3553.0,3552.7,3.0]
[1733245753259,0.0259826,3552.9,3552.3,2.81507]
[1733245753473,0.0259826,3552.9,3552.6,3.0]
[1733245753763,0.0259826,3552.9,3552.7,3.0]
[1733245753974,0.02073423,3553.3,3551.9,2.81537]
[1733245753975,2.81444,3553.1,3551.9,2.81537]
[1733245754129,2.81444,3553.1,3551.6,3.58128]
[1733245754130,0.7974,3552.9,3552.1,2.81522]
[1733245754323,0.7974,3552.9,3551.4,3.0]
[1733245754324,0.02073423,3552.8,3551.4,3.0]
[1733245754528,0.7974,3552.9,3551.2,0.8075]
[1733245754832,0.7974,3552.9,3552.6,2.81483]
[1733245755139,0.02600858,3553.0,3552.1,0.8075]
[1733245755373,0.02600858,3553.0,3552.8,2.8146]
[1733245755560,4.0,3552.9,3552.8,2.8146]
[1733245755867,0.85263423,3553.6,3552.6,2.81483]
[1733245756024,0.8319,3553.6,3552.8,2.81466]
[1733245756225,0.8319,3553.6,3552.9,2.81454]
[1733245756538,0.8319,3553.6,3553.0,3.0]
[1733245756852,0.8319,3553.6,3553.0,2.81451]
[1733245757005,0.8319,3553.6,3553.1,2.81443]
[1733245757206,0.8319,3553.6,3552.2,3.55]
[1733245757207,0.8319,3553.6,3552.9,2.81456]
[1733245757407,0.8319,3553.6,3553.0,0.55]
[1733245757722,0.7903,3554.2,3553.0,0.55]
[1733245757925,0.7903,3554.2,3553.1,0.02814077]
[1733245758127,0.7903,3554.2,3553.0,3.55]
[1733245758128,0.02669262,3554.1,3553.0,3.55]
[1733245758424,0.7903,3554.2,3553.6,2.81399]
[1733245758643,4.0,3553.7,3553.6,2.81404]
[1733245759060,0.0268487,3553.7,3553.6,2.81404]
[1733245759427,0.7903,3554.2,3553.0,3.55]
[1733245759428,0.7903,3554.2,3553.3,3.0]
[1733245759620,0.8018,3554.9,3553.8,0.55]
[1733245759822,0.8018,3554.9,3554.5,2.81333]
[1733245760127,3.28684057,3555.9,3553.9,2.81381]
[1733245760128,4.0,3554.6,3554.4,3.0]
[1733245760458,0.02479536,3554.5,3554.2,3.55]
[1733245760659,0.02479536,3554.5,3554.4,3.0]
[1733245760820,0.02479536,3554.5,3554.0,0.55]
[1733245761020,0.8018,3555.2,3554.2,5.81355]
[1733245761218,0.02495111,3555.1,3553.8,0.55]
[1733245761465,3.59664423,3555.0,3553.5,0.55]
[1733245761672,0.7629,3555.0,3553.8,3.0]
[1733245761823,0.795,3554.4,3553.5,0.55]
[1733245762028,0.0478579,3554.3,3553.5,0.55]
[1733245762249,0.76561979,3554.2,3553.5,0.55]
[1733245762458,0.76561979,3554.2,3553.4,0.55]
[1733245762668,0.02707174,3554.1,3553.0,0.7861]
[1733245762885,0.02707174,3554.1,3552.5,2.81486]
[1733245762886,3.61053,3554.0,3552.9,2.81458]
[1733245763039,3.6106,3554.0,3552.8,2.81466]
[1733245763240,2.81435,3553.3,3552.1,0.7861]
[1733245763426,2.81453,3553.0,3551.9,2.81531]
[1733245763627,0.02073423,3552.9,3551.7,0.7861]
[1733245763865,0.02073423,3552.9,3551.3,0.8087]
[1733245763866,0.04721854,3552.9,3551.3,0.8087]
[1733245764165,0.02648431,3552.9,3551.4,0.02815116]
[1733245764468,0.02648431,3552.9,3551.9,2.81537]
[1733245764825,0.02648431,3552.9,3552.0,3.0]
[1733245765064,0.02648431,3552.9,3552.1,3.0]
[1733245765276,0.7968,3553.1,3551.7,3.0]
[1733245765423,0.02634845,3552.8,3552.0,2.81525]
[1733245765627,3.61125,3553.1,3552.1,3.0]
[1733245765929,2.81452,3553.0,3552.1,3.0]
[1733245766364,0.04710866,3552.9,3552.0,0.581525]
[1733245766783,0.02637443,3552.9,3552.0,0.581525]
[1733245767078,2.81477,3552.7,3551.7,3.0]
[1733245767381,2.84098443,3552.9,3551.9,3.0]
[1733245767567,0.02516839,3552.8,3552.0,3.0]
[1733245767881,2.81452,3553.0,3551.6,3.0]
[1733245768043,0.02512297,3552.7,3552.1,3.0]
[1733245768365,0.02546508,3552.6,3551.9,2.81537]
[1733245768569,0.7519,3552.5,3551.5,0.36527012]
[1733245768892,0.02541311,3552.4,3551.5,2.81567]
[1733245769647,0.04614734,3552.4,3551.5,2.81567]
[1733245769989,0.02541311,3552.4,3551.1,0.55]
[1733245770665,0.04614734,3552.4,3551.4,0.55]
[1733245770870,0.04614734,3552.4,3551.4,3.36572]
[1733245771045,0.02541311,3552.4,3551.5,3.0]
[1733245771358,0.02541311,3552.4,3551.5,2.8157]
[1733245771554,0.02541311,3552.4,3551.6,5.8156]
[1733245771763,0.7519,3552.5,3551.6,3.0]
[1733245772089,0.02469732,3552.4,3551.4,1.186572]
[1733245772246,0.02469732,3552.4,3551.6,3.0]
[1733245772743,0.02469732,3552.4,3551.7,3.0]
[1733245772943,0.7519,3552.5,3551.7,3.0]
[1733245774579,0.7519,3552.5,3551.7,5.81549]
[1733245774800,0.7519,3552.5,3551.5,2.81569]
[1733245774985,0.7519,3552.5,3551.3,3.0]
[1733245775326,0.02073423,3552.9,3551.3,3.0]
[1733245775327,0.8024,3552.3,3551.7,2.81554]
[1733245775479,0.8024,3552.3,3551.5,6.36567]
[1733245775675,0.8024,3552.3,3551.5,0.55]
[1733245776011,0.02488337,3552.2,3551.4,3.55]
[1733245776164,0.8024,3552.3,3551.7,3.55]
[1733245776371,0.02488337,3552.2,3551.7,3.55]
[1733245776873,0.7816,3551.8,3550.8,2.8162]
[1733245777112,0.7816,3551.8,3550.6,3.64381]
[1733245777113,3.22242406,3551.7,3550.6,3.64381]
[1733245777295,0.02073423,3551.6,3550.6,0.8274]
[1733245777463,0.02073423,3551.6,3550.8,0.44045763]
[1733245777895,0.02841249,3551.6,3550.8,0.44045763]
[1733245778295,3.28684057,3551.1,3550.8,0.44045763]
[1733245778509,3.28684057,3551.1,3549.7,2.81706]
[1733245778510,2.81627,3550.8,3549.7,2.81706]
[1733245778724,2.81646,3550.6,3549.8,0.44054941]
[1733245779011,0.8099,3550.4,3549.8,0.44054941]
[1733245779185,0.02073423,3550.3,3549.8,0.44054941]
[1733245779389,0.8099,3550.4,3549.8,0.44054941]
[1733245780575,0.02073423,3550.3,3549.8,0.44054941]
[1733245781093,3.67229622,3550.3,3549.2,2.81753]
[1733245781297,3.67229622,3550.3,3549.2,0.44064992]
[1733245781504,3.28684057,3549.9,3549.2,0.44064992]
[1733245781722,0.7893,3549.7,3549.2,0.44064992]
[1733245782314,2.81763,3549.1,3547.5,2.81888]
[1733245782502,3.28684057,3549.0,3548.2,0.44072058]
[1733245782830,0.7893,3549.2,3548.2,0.44072058]
[1733245783108,0.7893,3549.2,3547.7,0.0281815]
[1733245783416,0.7893,3549.2,3548.7,2.81792]
[1733245783718,0.7897,3550.1,3549.0,2.81762]
[1733245784073,0.7897,3550.1,3548.7,0.281792]
[1733245784272,0.7897,3550.1,3548.9,3.0]
[1733245784587,0.7897,3550.1,3549.3,2.81742]
[1733245785394,0.7897,3550.1,3549.0,1.302]
[1733245785593,0.7897,3550.1,3549.4,2.81733]
[1733245786921,0.02073423,3550.0,3549.0,0.55]
[1733245787132,0.02073423,3550.0,3549.0,2.81762]
[1733245787289,0.02073423,3550.0,3548.8,0.55]
[1733245787488,0.02073423,3550.0,3549.3,2.81745]
[1733245787722,0.7897,3550.1,3549.3,2.81745]
[1733245788388,0.7897,3550.1,3549.4,2.81737]
[1733245790415,0.7897,3550.1,3548.9,2.81772]
[1733245790598,0.7897,3550.1,3549.0,3.57817183]
[1733245790787,0.7897,3550.1,3549.4,0.55]
[1733245790989,2.83692423,3550.9,3549.4,0.55]
[1733245790990,0.785,3550.8,3549.4,1.3093]
[1733245791515,0.785,3550.8,3550.1,2.81681]
[1733245791846,0.785,3550.8,3549.4,1.3093]
[1733245791847,0.785,3550.8,3550.6,2.81642]
[1733245792134,0.7722,3551.2,3550.8,2.81619]
[1733245792455,0.7748,3551.6,3550.4,0.55]
[1733245792726,0.7748,3551.6,3550.5,0.715582]
[1733245792975,0.7748,3551.6,3551.1,2.81602]
[1733245793437,0.7748,3551.6,3550.5,0.715582]
[1733245793438,0.7748,3551.6,3550.7,2.81628]
[1733245793641,0.7748,3551.6,3551.0,2.81609]
[1733245794103,0.7748,3551.6,3551.2,2.81594]
[1733245794441,0.7748,3551.6,3551.3,2.81585]
[1733245794939,0.7748,3551.6,3551.1,2.816]
[1733245795234,0.7748,3551.6,3551.1,2.81602]
[1733245795550,0.7748,3551.6,3551.1,2.81599]
[1733245795892,0.7748,3551.6,3550.8,3.0]
[1733245796203,3.28684057,3551.1,3550.1,2.8168]
[1733245796392,0.7681,3552.3,3551.0,0.789]
[1733245796593,0.29409279,3552.5,3551.9,2.81538]
[1733245796802,0.29409279,3552.5,3551.1,2.84416521]
[1733245796803,0.7681,3552.7,3552.4,2.81499]
[1733245797020,0.7681,3552.7,3551.4,2.81574]
[1733245797021,4.0,3552.5,3551.4,2.81574]
[1733245797203,4.0,3552.5,3551.9,2.81539]
[1733245797528,4.0,3552.5,3551.1,2.81601]
[1733245797529,4.565621,3552.5,3551.5,3.0]
[1733245797728,0.7681,3552.7,3551.8,2.81547]
[1733245798032,0.7681,3552.7,3552.1,2.81516]
[1733245798895,0.7615,3553.3,3552.0,0.83645087]
[1733245799090,3.57578,3553.3,3552.0,0.8083]
[1733245799297,0.02692828,3552.7,3552.3,2.81507]
[1733245799715,0.7615,3553.3,3552.3,2.81507]
[1733245800114,0.7615,3553.3,3552.1,0.57814895]
[1733245800301,0.7615,3553.3,3552.7,2.81476]
[1733245800534,0.7615,3553.3,3552.3,0.362337]
[1733245800733,0.7615,3553.3,3552.5,2.81489]
[1733245800965,0.7615,3553.3,3552.4,0.55]
[1733245801307,0.7615,3553.3,3552.7,2.81476]
[1733245801473,0.7615,3553.3,3552.7,3.701236]
[1733245802148,0.7615,3553.3,3552.7,0.336476]
[1733245802350,0.7615,3553.3,3552.4,0.55]
[1733245802578,0.7615,3553.3,3552.5,3.0]
[1733245802782,0.7574,3552.7,3552.0,3.0]
[1733245802988,0.7574,3552.7,3551.9,3.0]
[1733245803189,0.7574,3552.7,3552.1,2.81523]
[1733245803608,0.7574,3552.7,3551.9,0.3]
[1733245803893,5.81376,3554.0,3551.9,0.3]
[1733245803894,0.79,3553.1,3552.1,2.81523]
[1733245804209,0.02073423,3553.0,3551.9,0.3]
[1733245804349,0.79,3553.1,3552.0,0.55]
[1733245804554,0.79,3553.6,3552.7,3.36476]
[1733245804792,0.79,3553.6,3552.7,6.982729]
[1733245805314,0.79,3553.6,3552.7,6.432729]
[1733245805793,1.69091,3552.8,3551.9,3.58684057]
[1733245805958,1.69091,3552.8,3551.9,3.3]
[1733245806144,1.69091,3552.8,3551.9,0.3]
[1733245806351,1.69091,3552.8,3552.4,3.0]
[1733245806550,1.69091,3552.8,3552.4,2.81493]
[1733245806763,0.88811,3552.8,3552.5,0.281493]
[1733245807187,0.88811,3552.8,3552.7,2.81476]
[1733245807409,0.88811,3552.8,3552.7,7.12876]
[1733245808100,0.88811,3552.8,3552.7,6.36476]
[1733245808711,0.88811,3552.8,3552.5,0.281493]
[1733245808858,0.88811,3552.8,3551.7,2.81549]
[1733245808859,1.056281,3552.8,3551.7,0.8042]
[1733245809059,1.056281,3552.8,3551.0,0.8282]
[1733245809060,2.81486,3552.6,3551.0,0.8282]
[1733245809278,2.81476,3552.7,3551.1,2.81602]
[1733245809480,1.056281,3552.8,3551.0,0.8282]
[1733245809481,3.870981,3552.8,3551.3,2.81581]
[1733245809784,0.765,3552.7,3551.0,0.85635137]
[1733245809959,0.765,3552.7,3551.8,2.81543]
[1733245810162,0.765,3552.7,3551.6,2.81562]
[1733245810506,0.765,3552.7,3551.7,3.0]
[1733245810806,0.765,3552.7,3551.7,0.7777]
[1733245811006,0.7926,3553.3,3552.3,2.81503]
[1733245811210,2.81436,3553.2,3551.8,0.55]
[1733245811366,0.02073423,3553.1,3551.8,0.55]
[1733245811562,2.8146,3552.9,3551.7,0.55]
[1733245811846,0.38356423,3552.8,3551.8,3.0]
[1733245811961,2.81485,3552.6,3551.5,2.81563]
[1733245812166,0.8137,3552.7,3551.6,6.36555]
[1733245812558,0.8137,3552.7,3551.6,3.55]
[1733245812758,0.7781,3552.7,3551.5,3.0]